bitfinex/quotes_BTCUSD_20241124
["timestamp","ask_amount","ask_price","bid_price","bid_amount"]
[1732424582755,0.0486,97975.0,97952.0,0.0017182]
[1732424582756,0.0486,97974.0,97952.0,0.0017182]
[1732424583310,0.0486,97974.0,97952.0,0.04210731]
[1732424583532,0.0486,97974.0,97952.0,0.0017182]
[1732424587058,0.0486,97974.0,97952.0,0.04248335]
[1732424587266,0.0486,97974.0,97952.0,0.0017182]
[1732424588333,0.0486,97974.0,97953.0,0.0489]
[1732424588546,0.0486,97974.0,97954.0,0.2268]
[1732424592734,0.03482476,97974.0,97954.0,0.2268]
[1732424598411,0.03482476,97974.0,97955.0,0.0487]
[1732424598608,0.0462,97979.0,97955.0,0.1987]
[1732424598836,0.00127585,97978.0,97956.0,0.0487]
[1732424602599,0.00213495,97978.0,97956.0,0.0487]
[1732424606067,0.00213495,97978.0,97957.0,0.2271]
[1732424606302,0.00213495,97978.0,97958.0,0.1987]
[1732424615983,0.00213495,97978.0,97958.0,0.200418]
[1732424616191,0.00213495,97978.0,97959.0,0.0487]
[1732424620175,0.00213495,97978.0,97960.0,0.0754]
[1732424620389,0.0008591,97978.0,97960.0,0.2254]
[1732424620605,0.0008591,97978.0,97961.0,0.1981]
[1732424625075,0.0008591,97978.0,97962.0,0.0481]
[1732424632799,0.0008591,97978.0,97962.0,0.09018385]
[1732424633892,0.0493,97977.0,97962.0,0.09018385]
[1732424634112,0.0493,97975.0,97962.0,0.04208385]
[1732424634319,0.0814591,97978.0,97958.0,0.001718]
[1732424634320,0.0806,97973.0,97958.0,0.001718]
[1732424634534,0.05057602,97972.0,97958.0,0.04342167]
[1732424634761,0.05057602,97972.0,97958.0,0.001718]
[1732424640112,0.0464,97970.0,97958.0,0.001718]
[1732424640355,0.0464,97968.0,97958.0,0.001718]
[1732424640587,0.10201427,97971.0,97958.0,0.001718]
[1732424640588,0.0464,97965.0,97958.0,0.001718]
[1732424640819,0.0464,97963.0,97958.0,0.001718]
[1732424641060,0.00127616,97962.0,97958.0,0.001718]
[1732424642200,0.00127616,97962.0,97959.0,0.15]
[1732424642410,0.0464,97963.0,97958.0,0.001718]
[1732424642644,0.00127616,97962.0,97958.0,0.001718]
[1732424643090,0.00127616,97962.0,97959.0,0.15]
[1732424643303,0.0464,97963.0,97958.0,0.001718]
[1732424643522,0.00127616,97962.0,97959.0,0.15]
[1732424643746,0.00127616,97962.0,97958.0,0.001718]
[1732424643963,0.0464,97963.0,97959.0,0.15]
[1732424644297,0.04767611,97970.0,97958.0,0.001718]
[1732424644995,0.0464,97970.0,97958.0,0.001718]
[1732424645184,0.00127611,97969.0,97959.0,0.15]
[1732424645307,0.00127611,97969.0,97958.0,0.001718]
[1732424645540,0.00127604,97971.0,97958.0,0.001718]
[1732424645754,0.00127601,97977.0,97959.0,0.1305]
[1732424645965,0.00127592,97976.0,97960.0,0.15]
[1732424646360,0.00127592,97975.0,97960.0,0.15]
[1732424646548,0.00127592,97977.0,97960.0,0.15]
[1732424647515,0.0008591,97978.0,97960.0,0.15]
[1732424647728,0.00127592,97977.0,97960.0,0.15]
[1732424649785,0.00127592,97977.0,97967.0,0.1255878]
[1732424650188,0.00127592,97977.0,97968.0,0.15]
[1732424651402,0.00213492,97977.0,97968.0,0.15]
[1732424654408,0.000859,97977.0,97967.0,0.1255878]
[1732424655153,0.000859,97977.0,97968.0,0.0485]
[1732424655963,0.000859,97977.0,97970.0,0.0761]
[1732424660100,0.000859,97977.0,97968.0,0.1985]
[1732424660868,0.046759,97977.0,97967.0,0.04135804]
[1732424661107,0.046759,97977.0,97968.0,0.15]
[1732424662971,0.046759,97977.0,97963.0,0.04210869]
[1732424663181,0.046759,97977.0,97967.0,0.1255878]
[1732424663395,0.046759,97977.0,97968.0,0.15]
[1732424664289,0.046759,97977.0,97961.0,0.15]
[1732424664736,0.046759,97977.0,97960.0,0.08952687]
[1732424665378,0.046759,97977.0,97967.0,0.001718]
[1732424671167,0.0813,97976.0,97967.0,0.001718]
[1732424671403,0.00127594,97976.0,97967.0,0.001718]
[1732424671627,0.000859,97977.0,97967.0,0.001718]
[1732424678040,0.000859,97977.0,97967.0,0.081418]
[1732424679168,0.000859,97977.0,97968.0,0.1952]
[1732424679409,0.000859,97977.0,97968.0,0.19576661]
[1732424681182,0.0008592,97985.0,97968.0,0.19576661]
[1732424682809,0.0008592,97985.0,97969.0,0.0452]
[1732424683029,0.0008592,97985.0,97970.0,0.00056644]
[1732424683262,0.0008592,97985.0,97971.0,0.00056644]
[1732424683458,0.0008592,97985.0,97970.0,0.00056644]
[1732424686742,0.00127574,97993.0,97970.0,0.00056644]
[1732424686948,0.00213478,97990.0,97970.0,0.00056644]
[1732424689374,0.000859,97985.0,97970.0,0.04281869]
[1732424690043,0.000859,97985.0,97970.0,0.04225225]
[1732424690529,0.000859,97985.0,97969.0,0.0452]
[1732424691179,0.000859,97985.0,97969.0,0.08583241]
[1732424694119,0.0494,97984.0,97969.0,0.04063241]
[1732424694331,0.0774758,97983.0,97969.0,0.04063241]
[1732424694533,0.0774758,97983.0,97967.0,0.001718]
[1732424694971,0.0774758,97983.0,97967.0,0.04204903]
[1732424695319,0.0774758,97983.0,97967.0,0.001718]
[1732424701384,0.000859,97985.0,97969.0,0.15]
[1732424701717,0.000859,97985.0,97970.0,0.04896635]
[1732424703208,0.000859,97985.0,97970.0,0.0484]
[1732424703824,0.00507269,97992.0,97970.0,0.0484]
[1732424704243,0.00070935,97991.0,97970.0,0.0484]
[1732424707117,0.00070935,97991.0,97970.0,0.0494]
[1732424709926,0.00070935,97991.0,97971.0,0.2256]
[1732424710291,0.00070935,97991.0,97972.0,0.1962]
[1732424711878,0.00070935,97991.0,97973.0,0.00102056]
[1732424712089,0.00070935,97991.0,97974.0,0.0462]
[1732424712290,0.00070935,97991.0,97975.0,0.00102055]
[1732424712489,0.00070935,97991.0,97986.0,0.15]
[1732424712870,0.0008589,97991.0,97986.0,0.15]
[1732424713068,0.00507269,97992.0,97985.0,0.0462]
[1732424715608,0.0008591,98002.0,97986.0,0.22662046]
[1732424715842,0.0008591,98002.0,97987.0,0.1962]
[1732424716065,0.0008591,98002.0,97987.0,0.19722043]
[1732424718559,0.0008591,98002.0,97986.0,0.19169926]
[1732424718966,0.0008591,98002.0,97987.0,0.0008213]
[1732424719171,0.00012784,97997.0,97987.0,0.0008213]
[1732424721076,0.00012784,97997.0,97993.0,0.15]
[1732424721484,0.00012784,97997.0,97993.0,0.0491]
[1732424723917,0.0008591,98002.0,97993.0,0.0491]
[1732424727515,0.0008589,98007.0,97993.0,0.0491]
[1732424728660,0.0008589,98007.0,98003.0,0.15]
[1732424729084,0.0008589,98007.0,97989.0,0.00082121]
[1732424729289,0.0008589,98007.0,97990.0,0.00082121]
[1732424729495,0.0008589,98007.0,97989.0,0.00082121]
[1732424730335,0.00127554,98011.0,97989.0,0.00082121]
[1732424732423,0.0484,98012.0,97989.0,0.00082121]
[1732424732843,0.0484,98012.0,97991.0,0.1979]
[1732424733047,0.0484,98012.0,97992.0,0.00082095]
[1732424735060,0.0484,98012.0,97991.0,0.1979]
[1732424735280,0.0484,98012.0,97992.0,0.00082095]
[1732424736692,0.0484,98012.0,97991.0,0.1979]
[1732424741135,0.0484,98012.0,97992.0,0.00082096]
[1732424742232,0.0484,98012.0,97991.0,0.1979]
[1732424743800,0.0484,98012.0,97992.0,0.00082096]
[1732424744041,0.0484,98012.0,97991.0,0.1979]
[1732424747788,0.0801,98011.0,97991.0,0.1979]
[1732424748438,0.0489,98010.0,97990.0,0.0781]
[1732424749789,0.0489,98010.0,97982.0,0.15]
[1732424750011,0.0489,98010.0,97981.0,0.02469908]
[1732424750136,0.0489,98010.0,97982.0,0.723118]
[1732424750370,0.0489,98010.0,97982.0,0.67222]
[1732424750588,0.0489,98010.0,97982.0,0.723118]
[1732424752103,0.0489,98010.0,97983.0,0.15]
[1732424752308,0.0489,98010.0,97982.0,0.0236011]
[1732424752733,0.0489,98010.0,97983.0,0.1268]
[1732424752950,0.0489,98010.0,97984.0,0.15]
[1732424753178,0.0489,98010.0,97984.0,0.1736011]
[1732424754011,0.0489,98010.0,97985.0,0.00082097]
[1732424755074,0.0489,98010.0,97985.0,0.02442207]
[1732424755729,0.0489,98010.0,97986.0,0.0236011]
[1732424755881,0.0489,98010.0,97987.0,0.00082097]
[1732424756298,0.0489,98010.0,97983.0,0.1268]
[1732424756299,0.0489,98010.0,97983.0,0.10908149]
[1732424757288,0.00325071,98010.0,97984.0,1.097599]
[1732424757704,0.0832,98009.0,97984.0,1.097599]
[1732424758334,0.0832,98009.0,97985.0,0.15]
[1732424758546,0.0832,98009.0,97987.0,0.15]
[1732424758762,0.0832,98009.0,97988.0,0.515314]
[1732424758993,0.0832,98009.0,97989.0,0.15]
[1732424759209,0.0832,98009.0,97989.0,0.669314]
[1732424759426,0.0832,98009.0,97991.0,0.15]
[1732424760482,0.0008587,98011.0,97983.0,0.151]
[1732424760483,0.0832,98007.0,97983.0,0.151]
[1732424760702,0.0493,98006.0,97985.0,0.15]
[1732424760976,0.0832,98005.0,97983.0,0.151]
[1732424761154,0.0493,98004.0,97983.0,0.151]
[1732424761575,0.0493,98004.0,97988.0,0.0017178]
[1732424764018,0.0832,98003.0,97988.0,0.0017178]
[1732424764241,0.0493,98002.0,97988.0,0.0017178]
[1732424764463,0.0832,98001.0,97988.0,0.0017178]
[1732424764680,0.0493,98000.0,97988.0,0.0017178]
[1732424764915,0.04331,98000.0,97988.0,0.0017178]
[1732424765809,0.00766,98000.0,97988.0,0.0017178]
[1732424766255,0.05363,98001.0,97988.0,0.0017178]
[1732424766633,0.05064003,98001.0,97988.0,0.0017178]
[1732424768574,0.0008587,98011.0,97988.0,0.0017178]
[1732424769465,0.0493,98010.0,97988.0,0.0017178]
[1732424770802,0.04921334,98010.0,97988.0,0.0017178]
[1732424771507,0.0832,98009.0,97988.0,0.0017178]
[1732424773684,0.0493,98008.0,97988.0,0.0017178]
[1732424773895,0.0493,98008.0,97981.0,0.0425]
[1732424774158,0.0493,98006.0,97981.0,0.0425]
[1732424776132,0.04668939,98006.0,97981.0,0.1925]
[1732424777033,0.01026939,98006.0,97981.0,0.1925]
[1732424777243,0.0832,98007.0,97983.0,0.15]
[1732424777685,0.0832,98007.0,97981.0,0.1925]
[1732424777933,0.0832,98007.0,97983.0,0.15]
[1732424779479,0.0832,98007.0,97981.0,0.1925]
[1732424779728,0.0832,98007.0,97981.0,0.0425]
[1732424780146,0.0454,98003.0,97981.0,0.0425]
[1732424782593,0.0797,98002.0,97981.0,0.0425]
[1732424782808,0.0454,98001.0,97981.0,0.0425]
[1732424785084,0.0454,98001.0,97981.0,0.04393635]
[1732424793506,0.0454,98001.0,97977.0,0.0495]
[1732424795475,0.0454,98001.0,97977.0,0.09067606]
[1732424795906,0.04447525,98001.0,97977.0,0.09067606]
[1732424797020,0.00824525,98001.0,97978.0,0.0463]
[1732424797226,0.0797,98002.0,97978.0,0.0463]
[1732424798360,0.0008592,98001.0,97978.0,0.0463]
[1732424800098,0.0501592,98001.0,97978.0,0.0463]
[1732424802366,0.0799,97994.0,97977.0,0.04289446]
[1732424805544,0.00642002,97994.0,97977.0,0.04289446]
[1732424805763,0.000859,98010.0,97980.0,0.0473]
[1732424805970,0.00127553,98009.0,97980.0,0.0473]
[1732424807296,0.0799,98006.0,97977.0,0.0017184]
[1732424807510,0.05057553,98005.0,97977.0,0.0017184]
[1732424807792,0.0799,98004.0,97977.0,0.0017184]
[1732424808016,0.0799,98002.0,97977.0,0.0017184]
[1732424808198,0.0799,98000.0,97977.0,0.0017184]
[1732424809159,0.0493,97999.0,97977.0,0.0017184]
[1732424809388,0.0799,97998.0,97977.0,0.0017184]
[1732424810001,0.0799,97993.0,97977.0,0.0017184]
[1732424814724,0.07418529,97993.0,97977.0,0.0017184]
[1732424817752,0.05586553,97993.0,97977.0,0.0017184]
[1732424818408,0.05586553,97993.0,97977.0,0.0003204]
[1732424820889,0.01906553,97993.0,97977.0,0.0003204]
[1732424821328,0.01906553,97993.0,97977.0,0.0781204]
[1732424825226,0.01585624,97993.0,97977.0,0.0781204]
[1732424827086,0.02980544,97997.0,97977.0,0.0781204]
[1732424828650,0.0785,98009.0,97974.0,0.01436276]
[1732424828855,0.0785,98007.0,97974.0,0.01436276]
[1732424829063,0.0785,98005.0,97974.0,0.01436276]
[1732424829290,0.0785,98003.0,97974.0,0.01436276]
[1732424829513,0.00127554,98002.0,97974.0,0.01436276]
[1732424829715,0.000859,98010.0,97974.0,0.01436276]
[1732424829716,0.07841792,98001.0,97974.0,0.01436276]
[1732424831783,0.0484,97999.0,97974.0,0.01436276]
[1732424832606,0.0785,97998.0,97974.0,0.01436276]
[1732424833676,0.0785,97998.0,97974.0,0.01608116]
[1732424839399,0.0785,97998.0,97975.0,0.0475]
[1732424843377,0.0785,97998.0,97976.0,0.0773]
[1732424843578,0.0785,97998.0,97978.0,0.0475]
[1732424843802,0.0785,97998.0,97971.0,0.09385033]
[1732424844020,0.0785,97998.0,97972.0,0.514593]
[1732424844276,0.0785,97998.0,97972.0,0.483318]
[1732424844460,0.0785,97998.0,97973.0,0.482572]
[1732424844694,0.0785,97998.0,97972.0,0.482616]
[1732424845328,0.0785,97998.0,97972.0,0.457246]
[1732424845566,0.0785,97998.0,97972.0,0.863991]
[1732424845811,0.0486,97997.0,97973.0,0.15]
[1732424846047,0.04386094,97997.0,97972.0,0.1975]
[1732424846474,0.04386094,97997.0,97974.0,0.001718]
[1732424847641,0.079,97996.0,97974.0,0.001718]
[1732424857148,0.06778173,97996.0,97974.0,0.001718]
[1732424862096,0.0831,97994.0,97974.0,0.001718]
[1732424862564,0.04669544,97994.0,97974.0,0.001718]
[1732424863201,0.04669544,97994.0,97974.0,0.0011643]
[1732424863621,0.0471,97996.0,97974.0,0.0011643]
[1732424863829,0.04837563,97995.0,97974.0,0.0011643]
[1732424865473,0.0831,97994.0,97974.0,0.0011643]
[1732424865678,0.000859,97997.0,97974.0,0.0011643]
[1732424865679,0.0831,97992.0,97974.0,0.0011643]
[1732424865908,0.0471,97991.0,97974.0,0.0011643]
[1732424866954,0.0831,97990.0,97974.0,0.0011643]
[1732424867173,0.08282878,97990.0,97974.0,0.0011643]
[1732424869259,0.08282878,97990.0,97971.0,0.24385033]
[1732424869260,0.08282878,97990.0,97970.0,0.01274211]
[1732424869466,0.08282878,97990.0,97968.0,0.161]
[1732424869671,0.08282878,97990.0,97969.0,0.204]
[1732424870550,0.0471,97989.0,97969.0,0.204]
[1732424871707,0.0471,97989.0,97970.0,0.15]
[1732424873113,0.03893917,97989.0,97970.0,0.15]
[1732424875400,0.08276983,97990.0,97970.0,0.10597445]
[1732424875831,0.07437848,97990.0,97970.0,0.10597445]
[1732424876049,0.07143819,97990.0,97970.0,0.10597445]
[1732424876945,0.06252656,97990.0,97970.0,0.10597445]
[1732424877780,0.05462706,97990.0,97970.0,0.10597445]
[1732424878422,0.0469,97989.0,97970.0,0.10597445]
[1732424880454,0.04978142,97990.0,97971.0,0.0475]
[1732424880667,0.04356974,97990.0,97971.0,0.0475]
[1732424884216,0.04356974,97990.0,97971.0,0.0492182]
[1732424884887,0.00808974,97990.0,97971.0,0.0492182]
[1732424887075,0.000859,97997.0,97972.0,0.0808]
[1732424887297,0.000859,97997.0,97974.0,0.0475]
[1732424889021,0.00127563,97996.0,97974.0,0.0475]
[1732424889985,0.0754,97995.0,97974.0,0.0475]
[1732424890203,0.0766757,97995.0,97974.0,0.0475]
[1732424893628,0.000859,97997.0,97975.0,0.2308]
[1732424893823,0.000859,97997.0,97977.0,0.0808]
[1732424894037,0.00213455,98010.0,97979.0,0.0475]
[1732424894279,0.00127555,98009.0,97979.0,0.0475]
[1732424895352,0.00127555,98009.0,97979.0,0.19081056]
[1732424895584,0.00127555,98009.0,97980.0,0.15]
[1732424895808,0.00127555,98009.0,97981.0,0.0475]
[1732424896743,0.0008591,97995.0,97981.0,0.0475]
[1732424902370,0.0008591,97995.0,97982.0,0.0762]
[1732424902575,0.0008591,97995.0,97983.0,0.1958]
[1732424902787,0.0008591,97995.0,97984.0,0.0458]
[1732424903583,0.00127555,98007.0,97984.0,0.0458]
[1732424908394,0.00127555,98007.0,97985.0,0.2262]
[1732424908594,0.00127555,98007.0,97986.0,0.15]
[1732424908800,0.00127555,98007.0,97987.0,0.0458]
[1732424913577,0.00127555,98007.0,97986.0,0.15]
[1732424913578,0.00127555,98007.0,97978.0,0.15]
[1732424913789,0.00127555,98007.0,97969.0,0.1517182]
[1732424914001,0.00127555,98007.0,97972.0,0.101152]
[1732424915738,0.00127555,98007.0,97973.0,0.15]
[1732424915961,0.00127555,98007.0,97975.0,0.15]
[1732424916257,0.00127555,98007.0,97977.0,0.15]
[1732424916485,0.00127555,98007.0,97979.0,0.15]
[1732424916714,0.00127555,98007.0,97981.0,0.15]
[1732424916938,0.06916787,98008.0,97982.0,0.04682044]
[1732424917375,0.000859,98010.0,97982.0,0.04682044]
[1732424917376,0.000859,98010.0,97985.0,0.1991]
[1732424917660,0.000859,98010.0,97986.0,0.2288]
[1732424917896,0.000859,98010.0,97988.0,0.0491]
[1732424918373,0.000859,98010.0,97987.0,0.2288]
[1732424918374,0.000859,98010.0,97989.0,0.00102034]
[1732424918613,0.0484588,98025.0,97991.0,0.0491]
[1732424918860,0.0008588,98025.0,97994.0,0.2288]
[1732424919096,0.0008588,98025.0,97988.0,0.161]
[1732424919097,0.0008588,98025.0,97997.0,0.0491]
[1732424919317,0.0008588,98025.0,97996.0,0.15]
[1732424919318,0.0008588,98025.0,97999.0,0.0491]
[1732424919544,0.0008588,98025.0,98001.0,0.0491]
[1732424919783,0.0008588,98025.0,98002.0,0.05012022]
[1732424920090,0.0008588,98025.0,98003.0,0.2288]
[1732424920194,0.0008588,98025.0,98004.0,0.0491]
[1732424920417,0.0008588,98025.0,98005.0,0.0491]
[1732424920643,0.0008588,98025.0,98007.0,0.0491]
[1732424920875,0.0008588,98025.0,98007.0,0.05012022]
[1732424921101,0.0009542,98024.0,98007.0,0.05012022]
[1732424926885,0.0008588,98025.0,98008.0,0.00102022]
[1732424927115,0.0008588,98025.0,98009.0,0.0483]
[1732424927350,0.0797,98033.0,98011.0,0.0483]
[1732424927562,0.0797,98033.0,98022.0,0.15]
[1732424927817,0.0797,98033.0,98023.0,0.0483]
[1732424928472,0.0009542,98032.0,98023.0,0.0483]
[1732424929534,0.0009542,98032.0,98018.0,0.0483]
[1732424932887,0.0009542,98032.0,98018.0,0.08881336]
[1732424937237,0.0009542,98032.0,98010.0,0.0116054]
[1732424937652,0.0009542,98032.0,97990.0,2.26348466]
[1732424937864,0.0009542,98032.0,97991.0,1.304562]
[1732424938114,0.0009542,98032.0,97992.0,0.82044]
[1732424938319,0.0493,98031.0,97991.0,0.84136]
[1732424938726,0.0493,98031.0,97992.0,0.802204]
[1732424938967,0.041166,98031.0,97992.0,0.0464]
[1732424939250,0.03909996,98031.0,97994.0,0.0464]
[1732424939436,0.0756,98030.0,97995.0,0.0464]
[1732424939674,0.0756,98030.0,97997.0,0.0464]
[1732424939885,0.0756,98030.0,97999.0,0.15]
[1732424940094,0.0756,98030.0,98002.0,0.0464]
[1732424940324,0.0756,98030.0,98004.0,0.15]
[1732424940987,0.0756,98030.0,98005.0,0.0464]
[1732424942561,0.0756,98030.0,98005.0,0.08763748]
[1732424942789,0.0756,98030.0,97990.0,2.56772739]
[1732424943017,0.0756,98030.0,97991.0,1.898313]
[1732424943908,0.0756,98030.0,97990.0,2.56772739]
[1732424944116,0.0756,98030.0,97991.0,1.904781]
[1732424944331,0.0756,98030.0,97990.0,2.56772739]
[1732424944332,0.0756,98030.0,97992.0,1.530847]
[1732424944546,0.0756,98030.0,97991.0,1.499782]
[1732424945126,0.0756,98030.0,97992.0,0.15]
[1732424945481,0.0756,98030.0,97994.0,0.15]
[1732424945930,0.0756,98030.0,97997.0,0.0464]
[1732424946410,0.0756,98030.0,97995.0,0.0762]
[1732424946411,0.0756,98030.0,98000.0,0.049]
[1732424946609,0.0756,98030.0,98002.0,0.199]
[1732424946816,0.0756,98030.0,98004.0,0.15]
[1732424947032,0.0756,98030.0,98006.0,0.15]
[1732424947286,0.0756,98030.0,98007.0,0.0010201]
[1732424947468,0.0756,98030.0,98008.0,0.15]
[1732424947669,0.0756,98030.0,98010.0,0.15]
[1732424947888,0.0756,98030.0,98011.0,0.0010201]
[1732424948945,0.0756,98030.0,98011.0,0.0500201]
[1732424951559,0.0756,98030.0,98011.0,0.09195248]
[1732424952219,0.06856101,98030.0,98011.0,0.09195248]
[1732424956280,0.03909996,98031.0,98011.0,0.09195248]
[1732424957117,0.01778045,98031.0,98011.0,0.09195248]
[1732424957825,0.0008587,98033.0,98011.0,0.09195248]
[1732424958708,0.000859,98031.0,98011.0,0.09195248]
[1732424959121,0.000859,98031.0,98011.0,0.09093238]
[1732424959374,0.0768,98030.0,98011.0,0.09093238]
[1732424959583,0.0768,98030.0,98012.0,0.00102005]
[1732424959797,0.076699,98030.0,98012.0,0.00102005]
[1732424963253,0.0464,98029.0,98011.0,0.09093238]
[1732424963480,0.076699,98030.0,98011.0,0.09093238]
[1732424963481,0.051109,98030.0,98011.0,0.09093238]
[1732424963703,0.051109,98030.0,98012.0,0.00102007]
[1732424963956,0.0010242,98063.0,98015.0,0.0753]
[1732424964194,0.0010242,98063.0,98016.0,0.963536]
[1732424964410,7e-05,98063.0,98018.0,0.1978]
[1732424964616,7e-05,98063.0,98020.0,0.15]
[1732424965119,7e-05,98063.0,98021.0,0.0478]
[1732424966660,0.0464,98062.0,98021.0,0.0478]
[1732424966877,0.1232,98060.0,98023.0,0.0478]
[1732424967061,0.0768,98058.0,98024.0,0.0478]
[1732424967330,0.0768,98056.0,98024.0,0.0478]
[1732424967548,0.0783542,98055.0,98024.0,0.0478]
[1732424970348,0.0774,98053.0,98024.0,0.0478]
[1732424970565,0.0009542,98052.0,98024.0,0.0478]
[1732424977149,0.1254,98051.0,98025.0,0.0407]
[1732424977417,0.0783542,98050.0,98025.0,0.0407]
[1732424977628,0.048,98046.0,98025.0,0.0407]
[1732424977842,0.0774,98043.0,98025.0,0.0407]
[1732424978065,0.0774,98041.0,98024.0,0.15]
[1732424978312,0.0774,98041.0,98021.0,0.04164287]
[1732424978313,0.0009542,98040.0,98021.0,0.04164287]
[1732424978547,0.0009542,98040.0,98020.0,0.00102009]
[1732424979817,0.0009542,98040.0,98020.0,0.04288201]
[1732424980047,0.0009542,98040.0,98020.0,0.00102009]
[1732424982238,0.0009542,98040.0,98019.0,0.0896091]
[1732424983354,0.0774,98041.0,98019.0,0.0896091]
[1732424983801,0.0774,98041.0,98020.0,0.0017174]
[1732424986200,0.0454,98040.0,98020.0,0.0017174]
[1732424986407,0.0813,98039.0,98020.0,0.0017174]
[1732424989896,0.0813,98039.0,98020.0,0.00273749]
[1732424990134,0.0813,98039.0,98020.0,0.0017174]
[1732424991004,0.0813,98039.0,98020.0,0.00273749]
[1732425001143,0.0813,98039.0,98020.0,0.0017174]
[1732425007762,0.08085533,98039.0,98020.0,0.0017174]
[1732425020245,0.08085533,98039.0,98022.0,0.1969]
[1732425020477,0.08085533,98039.0,98024.0,0.0469]
[1732425020677,0.08085533,98039.0,98025.0,0.00102003]
[1732425022490,0.08085533,98039.0,98024.0,0.0469]
[1732425024491,0.08085533,98039.0,98036.0,0.15]
[1732425024866,0.08085533,98039.0,98025.0,0.00102003]
[1732425026792,0.04013777,98039.0,98025.0,0.00102003]
[1732425027641,0.04013777,98039.0,98025.0,0.04155316]
[1732425031648,0.04013777,98039.0,98015.0,0.0798]
[1732425031851,0.0468,98038.0,98016.0,0.04234615]
[1732425032053,0.0468,98038.0,98016.0,0.00102003]
[1732425033619,0.0468,98038.0,98016.0,0.15102003]
[1732425033840,0.0468,98038.0,98020.0,0.0017172]
[1732425037425,0.0468,98038.0,98021.0,0.00102003]
[1732425041376,0.0468,98038.0,98016.0,0.01264648]
[1732425046149,0.045404,98038.0,98016.0,0.01264648]
[1732425046556,0.045404,98038.0,98016.0,0.01436408]
[1732425049762,0.045404,98038.0,98018.0,0.15]
[1732425049989,0.045404,98038.0,98020.0,0.15]
[1732425051216,0.045404,98038.0,98016.0,0.1517176]
[1732425051413,0.045404,98038.0,98018.0,0.15]
[1732425051651,0.045404,98038.0,98020.0,0.15]
[1732425053081,0.045404,98038.0,98018.0,0.03205597]
[1732425054661,0.045404,98038.0,98020.0,0.15]
[1732425054774,0.045404,98038.0,98018.0,0.03205597]
[1732425058196,0.0462626,98038.0,98018.0,0.03205597]
[1732425059503,0.04113587,98038.0,98018.0,0.03205597]
[1732425067511,0.04113587,98038.0,98016.0,0.1517176]
[1732425070280,0.04113587,98038.0,98018.0,0.001718]
[1732425080244,0.0468,98036.0,98018.0,0.001718]
[1732425082174,0.0319711,98036.0,98018.0,0.001718]
[1732425082419,0.01858998,98036.0,98018.0,0.001718]
[1732425084310,0.0753,98037.0,98018.0,0.001718]
[1732425085457,0.0468,98036.0,98018.0,0.001718]
[1732425087082,0.046124,98036.0,98018.0,0.001718]
[1732425087319,0.046124,98036.0,98019.0,0.00051003]
[1732425094213,0.013124,98036.0,98019.0,0.00051003]
[1732425094491,0.052324,98037.0,98020.0,0.20082521]
[1732425094704,0.0008586,98038.0,98020.0,0.20535042]
[1732425094921,0.0008586,98038.0,98020.0,0.15905042]
[1732425095130,0.0008586,98038.0,98021.0,0.0463]
[1732425095615,0.0008586,98038.0,98022.0,0.00905042]
[1732425095838,7e-05,98063.0,98023.0,0.0463]
[1732425096053,0.00134494,98063.0,98023.0,0.0463]
[1732425096967,0.00134494,98063.0,98044.0,0.15]
[1732425097181,7e-05,98063.0,98032.0,0.0463]
[1732425097617,0.1274,98054.0,98032.0,0.0463]
[1732425098525,0.1274,98054.0,98033.0,0.2332]
[1732425100881,0.1274,98054.0,98033.0,0.2395858]
[1732425102519,0.1274,98054.0,98033.0,0.4005858]
[1732425105374,0.128259,98054.0,98033.0,0.4005858]
[1732425106628,0.12396588,98054.0,98035.0,0.15]
[1732425106825,0.12396588,98054.0,98036.0,0.0462]
[1732425108200,0.12396588,98054.0,98033.0,0.23652809]
[1732425108412,0.12396588,98054.0,98034.0,0.855757]
[1732425109912,0.10164688,98054.0,98035.0,0.0484]
[1732425111849,0.07965461,98054.0,98035.0,0.0484]
[1732425113845,0.00014648,98079.0,98037.0,0.15]
[1732425114067,0.00127475,98079.0,98039.0,0.15]
[1732425114277,0.00127475,98078.0,98039.0,0.15]
[1732425114492,0.00127474,98081.0,98039.0,0.15]
[1732425114704,0.00127474,98080.0,98039.0,0.15]
[1732425114918,0.00127474,98081.0,98039.0,0.15]
[1732425116243,0.00127474,98081.0,98040.0,0.0484]
[1732425116905,0.0499,98076.0,98040.0,0.0484]
[1732425117134,0.0753,98074.0,98040.0,0.0484]
[1732425117364,0.05117463,98073.0,98042.0,0.15]
[1732425117600,0.0474,98071.0,98042.0,0.15]
[1732425117803,0.00127463,98070.0,98044.0,0.15]
[1732425118036,0.00127463,98070.0,98045.0,0.0491]
[1732425119201,0.00127463,98070.0,98047.0,0.1991]
[1732425122872,0.00127463,98070.0,98047.0,0.23981305]
[1732425125080,0.0474,98069.0,98047.0,0.23981305]
[1732425125297,0.0474,98067.0,98047.0,0.23981305]
[1732425125520,0.0012747,98066.0,98047.0,0.23981305]
[1732425127741,0.0012747,98066.0,98048.0,0.0491]
[1732425127983,0.00127469,98074.0,98050.0,0.0491]
[1732425128199,0.00127464,98073.0,98050.0,0.0491]
[1732425128428,0.00127463,98072.0,98051.0,0.2326]
[1732425128640,0.00127463,98074.0,98052.0,0.1991]
[1732425129313,0.00127463,98074.0,98053.0,0.0491]
[1732425129524,0.0008589,98066.0,98053.0,0.0491]
[1732425129940,0.00127463,98077.0,98053.0,0.0491]
[1732425130154,0.08217463,98078.0,98053.0,0.0491]
[1732425131064,0.08217463,98078.0,98055.0,0.1991]
[1732425131297,0.00127463,98078.0,98055.0,0.1991]
[1732425131510,0.00127462,98078.0,98055.0,0.1991]
[1732425132440,0.0474,98080.0,98057.0,0.1317]
[1732425132658,0.000859,98081.0,98057.0,0.1317]
[1732425132659,0.00213358,98081.0,98059.0,0.0491]
[1732425133995,0.00127458,98080.0,98059.0,0.0491]
[1732425138943,0.0809,98084.0,98059.0,0.0491]
[1732425139148,0.00076551,98082.0,98059.0,0.0491]
[1732425140662,0.00076551,98082.0,98060.0,0.0784]
[1732425140909,0.00076551,98082.0,98061.0,0.1954]